bitfinex-derivatives/quotes_ETHF0:USTF0_20250620
["timestamp","ask_amount","ask_price","bid_price","bid_amount"]
[1750434573702,0.71473781,2501.6,2501.5,0.79944]
[1750434574404,0.71473781,2501.6,2501.3,0.6357]
[1750434574405,1.51415781,2501.6,2501.3,0.6357]
[1750434574601,1.44483,2501.6,2501.5,0.79944]
[1750434574904,0.6454,2501.6,2501.5,0.79944]
[1750434575310,1.44484,2501.6,2501.4,7.59445]
[1750434575500,0.79944,2501.5,2501.4,7.59445]
[1750434575702,0.6454,2501.6,2501.4,6.795]
[1750434575999,1.44482,2501.6,2501.5,0.79944]
[1750434576200,0.79947,2501.4,2501.3,1.43518]
[1750434576400,0.6454,2501.6,2501.3,6.795]
[1750434576605,0.6454,2501.6,2501.5,0.79944]
[1750434577707,1.44481,2501.6,2501.5,0.79944]
[1750434578808,0.6454,2501.6,2501.5,0.79944]
[1750434580303,4.07650781,2501.8,2501.7,0.79938]
[1750434580599,3.27713781,2501.8,2501.7,0.79938]
[1750434581714,0.06933781,2501.8,2501.7,0.79938]
[1750434584013,3.2078,2502.1,2502.0,0.79928]
[1750434584405,4.00697,2502.4,2502.3,0.79919]
[1750434585311,5.04082805,2502.4,2502.3,0.79919]
[1750434585511,3.2078,2502.4,2502.3,0.79919]
[1750434586701,4.00695,2502.4,2502.3,0.79919]
[1750434587509,0.79926,2502.1,2502.0,0.79926]
[1750434587715,0.79926,2502.1,2502.0,7.56926]
[1750434588211,0.79928,2502.0,2501.9,4.00709]
[1750434588516,1.48888,2502.0,2501.9,4.00709]
[1750434588711,1.48888,2502.0,2501.9,0.79929]
[1750434589017,0.6896,2502.0,2501.9,0.79929]
[1750434590305,0.79924,2502.2,2502.1,0.79925]
[1750434591019,0.79928,2502.1,2502.0,0.79927]
[1750434591207,0.79929,2502.0,2501.8,0.67]
[1750434591404,0.79927,2502.1,2502.0,0.79926]
[1750434591609,0.79924,2502.2,2502.1,0.79923]
[1750434592611,0.79927,2502.1,2502.0,0.79926]
[1750434592817,0.79931,2502.0,2501.9,0.79929]
[1750434593018,2.10938,2502.1,2502.0,0.79928]
[1750434594920,0.79924,2502.2,2502.1,0.79922]
[1750434595319,0.06933781,2502.4,2502.3,0.79919]
[1750434595713,0.79919,2502.3,2502.2,7.5692]
[1750434595914,3.27713781,2502.4,2502.1,6.77]
[1750434596120,0.79922,2502.3,2502.2,0.7992]
[1750434596322,2.16632,2502.3,2502.2,0.7992]
[1750434596723,1.3671,2502.3,2502.2,0.7992]
[1750434597516,2.16629,2502.3,2502.2,0.7992]
[1750434597917,4.07631781,2502.4,2502.3,0.79919]
[1750434598418,0.86851781,2502.4,2502.3,0.79919]
[1750434599111,0.06933781,2502.4,2502.3,0.79919]
[1750434600121,29.6949,2503.0,2502.8,0.79899]
[1750434600321,0.79907,2502.8,2502.7,0.79903]
[1750434600824,0.79912,2502.6,2502.5,0.79909]
[1750434601129,2.11016,2502.8,2502.7,0.79906]
[1750434602728,0.79911,2502.7,2502.6,0.79907]
[1750434602932,0.79911,2502.7,2502.3,1.99797]
[1750434602933,0.79913,2502.6,2502.5,0.79909]
[1750434603130,4.00693,2502.6,2502.5,0.79909]
[1750434603428,4.00691,2502.6,2502.5,0.79912]
[1750434604127,0.79916,2502.5,2502.4,0.79913]
[1750434604324,3.2078,2502.6,2502.3,0.79915]
[1750434604325,0.79918,2502.4,2502.3,0.79915]
[1750434604628,0.79921,2502.3,2502.2,0.79919]
[1750434604824,2.07591,2502.3,2502.2,0.79919]
[1750434605524,0.7993,2502.0,2501.9,0.79927]
[1750434606333,0.79933,2501.9,2501.8,0.79932]
[1750434606629,0.7994,2501.7,2501.6,0.79938]
[1750434606818,0.79944,2501.6,2501.5,0.79942]
[1750434607025,0.79947,2501.5,2501.4,0.79946]
[1750434607229,7.14136153,2501.5,2501.4,0.79946]
[1750434607736,4.95519153,2501.5,2501.4,0.79946]
[1750434607934,5.75463153,2501.5,2501.4,0.79946]
[1750434608335,0.79943,2501.6,2501.1,1.99893]
[1750434608538,3.2078,2501.4,2501.1,1.99893]
[1750434608928,3.2078,2501.4,2501.0,13.67869153]
[1750434608929,3.2078,2501.4,2501.3,0.79951]
[1750434609936,4.00727,2501.4,2501.3,0.79951]
[1750434610139,4.00729,2501.4,2501.2,0.79953]
[1750434610329,4.00729,2501.4,2501.3,0.79951]
[1750434610830,3.2078,2501.4,2501.0,8.7235]
[1750434611139,0.79967,2500.8,2500.6,6.77]
[1750434611440,0.79967,2500.8,2500.7,0.7997]
[1750434611637,1.99901,2501.0,2500.5,4.65875]
[1750434611939,0.79976,2500.5,2500.4,0.79979]
[1750434612141,0.79981,2500.4,2500.3,0.79982]
[1750434612435,1.9872,2500.7,2500.4,0.79978]
[1750434612640,0.79976,2500.5,2500.4,0.79978]
[1750434614441,0.79981,2500.4,2500.3,0.79981]
[1750434614743,0.79978,2500.5,2500.4,0.79979]
[1750434614933,2.78691,2500.7,2500.6,0.79973]
[1750434615234,1.9872,2500.7,2500.6,0.79973]
[1750434615440,0.684,2500.7,2500.6,0.79973]
[1750434615936,1.4837,2500.7,2500.6,0.79973]
[1750434616142,0.79974,2500.6,2500.5,0.79974]
[1750434616338,1.48372,2500.7,2500.6,0.79973]
[1750434616735,0.79978,2500.5,2500.4,0.79978]
[1750434616934,0.79974,2500.6,2500.5,0.79973]
[1750434617134,0.79974,2500.6,2500.2,11.97744]
[1750434617135,2.77862,2500.7,2500.6,0.79973]
[1750434617430,1.4837,2500.7,2500.6,0.79973]
[1750434618244,0.79974,2500.6,2500.5,0.79973]
[1750434619243,0.79973,2500.6,2500.5,0.79974]
[1750434619439,0.79973,2500.6,2500.2,13.24794]
[1750434619440,0.684,2500.7,2500.2,3.2078]
[1750434619631,2.07337,2500.5,2500.4,0.79979]
[1750434620033,0.7998,2500.4,2500.3,0.7998]
[1750434620536,0.79987,2500.2,2500.1,0.79986]
[1750434620737,2.08774,2500.3,2500.2,0.79986]
[1750434620937,0.79988,2500.2,2500.1,0.79987]
[1750434621137,0.79988,2500.2,2499.8,11.95777]
[1750434621138,0.6549,2500.2,2499.8,9.9578]
[1750434621338,0.79992,2500.1,2500.0,0.79991]
[1750434621532,3.2078,2500.1,2499.7,1.9352]
[1750434621745,0.79996,2499.9,2499.8,0.79999]
[1750434622348,0.79997,2499.9,2499.8,0.79997]
[1750434622545,16.80226077,2500.1,2499.4,3.2078]
[1750434622738,0.80007,2499.6,2499.5,0.80005]
[1750434622940,0.80003,2499.7,2499.6,0.80003]
[1750434623140,0.80007,2499.6,2499.5,0.80007]
[1750434624050,0.80011,2499.5,2499.4,0.80009]
[1750434624241,4.00791,2499.5,2499.4,0.80009]
[1750434624640,3.2078,2499.5,2499.4,0.80009]
[1750434625949,3.2078,2499.5,2499.4,2.11299]
[1750434626544,3.2078,2499.8,2499.7,0.80002]
[1750434626744,3.2078,2500.3,2500.2,0.79986]
[1750434627548,0.79981,2500.4,2500.3,0.79983]
[1750434627746,4.00761,2500.4,2500.2,0.79984]
[1750434627942,0.79983,2500.3,2500.0,10.30682077]
[1750434628144,3.2078,2500.4,2500.0,0.79989]
[1750434628341,3.2078,2500.1,2500.0,0.79992]
[1750434628544,1.3813,2500.4,2500.2,0.79986]
[1750434628545,0.79983,2500.3,2500.2,0.79986]
[1750434628740,0.79983,2500.3,2499.8,2.63305]
[1750434628741,0.79981,2500.4,2499.8,3.96565]
[1750434628950,0.79984,2500.3,2500.1,0.79987]
[1750434629143,3.2078,2500.2,2499.8,0.6331]
[1750434629342,4.00768,2500.2,2500.0,0.79992]
[1750434629848,4.00768,2500.2,2500.1,0.79989]
[1750434630044,2.18111,2500.4,2499.9,1.99987]
[1750434630246,0.79983,2500.3,2499.9,1.99984]
[1750434630440,1.3813,2500.4,2499.9,1.2884]
[1750434630645,1.3813,2500.4,2500.1,0.79987]
[1750434630851,2.18112,2500.4,2500.3,0.79982]
[1750434631158,4.00759,2500.5,2500.4,0.79979]
[1750434631847,3.2078,2500.5,2500.4,0.79979]
[1750434632051,4.00756,2500.5,2500.4,0.79979]
[1750434632655,0.79983,2500.4,2500.3,0.79982]
[1750434633350,0.79986,2500.3,2500.2,0.79983]
[1750434633558,0.79989,2500.2,2500.1,0.79987]
[1750434633753,4.00769,2500.2,2500.1,0.79987]
[1750434634150,0.79993,2500.1,2500.0,0.7999]
[1750434634350,0.79995,2500.0,2499.9,0.79994]
[1750434634558,1.47061,2500.1,2500.0,0.79992]
[1750434634850,0.6707,2500.1,2500.0,0.79992]
[1750434635058,3.2078,2500.2,2500.1,0.79989]
[1750434635447,0.79984,2500.3,2500.2,0.79982]
[1750434635651,0.79984,2500.3,2499.9,3.32746]
[1750434635652,32.70579,2500.4,2500.3,0.79982]
[1750434635961,0.79979,2500.4,2500.3,0.79982]
[1750434636546,0.79987,2500.3,2500.2,0.79984]
[1750434638560,25.95182,2500.4,2500.3,0.79983]
[1750434638859,25.152,2500.4,2500.3,0.79983]
[1750434639062,0.79986,2500.3,2500.2,0.79983]
[1750434642264,0.79986,2500.2,2500.1,1.45266]
[1750434642762,0.79986,2500.2,2498.9,46.064]
[1750434642763,5.2075,2500.2,2499.7,0.6663]
[1750434642962,0.79998,2499.9,2499.8,0.79996]
[1750434643263,0.79995,2500.0,2499.9,0.79992]
[1750434643660,1.99981,2500.0,2499.5,6.752]
[1750434643963,0.79997,2499.9,2499.8,0.79995]
[1750434644165,0.80003,2499.8,2499.7,0.79999]
[1750434644366,0.79997,2499.9,2499.8,0.79995]
[1750434646561,5.35474,2500.0,2499.9,0.79995]
[1750434646862,4.00774,2500.0,2499.9,0.79995]
[1750434647166,28.3488,2500.0,2499.9,0.79995]
[1750434647368,29.14872,2500.0,2499.9,0.79995]
[1750434647667,28.3488,2500.0,2499.9,0.79995]
[1750434647866,29.14872,2500.0,2499.9,0.79995]
[1750434648762,28.3488,2500.0,2499.9,0.79995]
[1750434649263,3.2078,2500.0,2499.9,0.79995]
[1750434649572,28.3458,2500.0,2499.9,0.79995]
[1750434650673,29.14572,2500.0,2499.9,0.79995]
[1750434651076,40.48849502,2500.0,2499.9,0.79995]
[1750434651273,30.18167425,2500.0,2499.9,0.79995]
[1750434652266,28.3458,2500.0,2499.9,0.79995]
[1750434652676,29.14572,2500.0,2499.9,0.79995]
[1750434653168,28.3458,2500.0,2499.9,0.79995]
[1750434653470,29.14572,2500.0,2499.9,0.79995]
[1750434654772,0.80002,2499.8,2499.7,0.79996]
[1750434654965,30.89705573,2499.8,2499.7,0.79996]
[1750434656270,25.134,2499.8,2499.7,0.79996]
[1750434659075,5.03237354,2499.9,2499.8,0.79998]
[1750434659375,30.15937354,2499.9,2499.8,0.79998]
[1750434659675,30.09003573,2499.9,2499.8,0.79998]
[1750434659875,30.88998573,2499.9,2499.8,0.79998]
[1750434660471,25.92695,2499.9,2499.8,0.79998]
[1750434660672,30.15937354,2499.9,2499.8,0.79998]
[1750434661175,30.95932354,2499.9,2499.8,0.79998]
[1750434661980,30.15937354,2499.9,2499.8,0.79998]
[1750434662174,5.03237354,2499.9,2499.8,0.79998]
[1750434662472,30.95632354,2499.9,2499.8,0.79998]
[1750434662677,36.41367354,2499.9,2499.3,3.18721786]
[1750434662974,0.80021,2499.2,2499.1,0.80019]
[1750434663173,30.08503573,2499.2,2499.1,0.80019]
[1750434663369,3.2078,2499.7,2499.3,0.80014]
[1750434663576,25.121,2499.6,2499.5,0.80008]
[1750434663777,25.121,2499.6,2499.5,1.34745411]
[1750434664077,24.73092679,2499.6,2499.5,1.34745411]
[1750434664277,29.69396252,2499.6,2499.5,0.80008]
[1750434664777,24.73092679,2499.6,2499.5,0.80008]
[1750434665680,30.49401252,2499.6,2499.5,0.80008]
[1750434665871,30.49401252,2499.6,2499.0,3.18721786]
[1750434665872,31.69412252,2499.6,2499.0,3.18721786]
[1750434666072,31.69412252,2499.6,2499.3,0.80015]
[1750434666073,8.17083573,2499.4,2499.3,0.80015]
[1750434666376,25.12,2499.4,2499.3,0.80015]
[1750434666773,3.2078,2499.7,2499.6,0.80005]
[1750434666979,29.12682,2499.7,2499.6,0.80005]
[1750434667173,28.3268,2499.7,2499.6,0.80005]
[1750434668687,3.2078,2499.7,2499.6,0.80005]
[1750434668883,28.3258,2499.7,2499.6,0.80005]
[1750434669470,7.3973,2500.0,2499.6,0.80005]
[1750434669471,3.8721,2500.0,2499.6,0.80005]
[1750434669779,1.376,2500.2,2500.0,0.79992]
[1750434669780,25.117,2500.1,2500.0,0.79992]
[1750434669985,1.42626,2500.2,2500.1,0.79989]
[1750434670174,25.7424,2500.2,2500.1,0.79989]
[1750434670684,26.61159781,2500.2,2500.1,0.79989]
[1750434670882,25.81173781,2500.2,2500.1,0.79989]
[1750434671074,26.61159781,2500.2,2500.1,0.79989]
[1750434671273,25.81173781,2500.2,2499.6,3.18721786]
[1750434671475,4.96303573,2499.8,2499.7,0.80002]
[1750434671682,25.114,2499.8,2499.7,0.80002]
[1750434671878,25.114,2499.8,2499.4,2.64374]
[1750434672076,2.75134,2499.7,2499.6,0.80002]
[1750434672480,1.9513,2499.7,2499.6,0.80002]
[1750434672675,2.75132,2499.7,2499.6,0.80002]
[1750434672875,1.42642,2499.7,2499.6,0.80002]
[1750434673075,25.7384,2499.7,2499.6,0.80002]
[1750434673281,31.50145573,2499.7,2499.6,0.80002]
[1750434673480,0.80008,2499.6,2499.5,0.80006]
[1750434673875,31.50146573,2499.7,2499.6,0.80005]
[1750434674076,26.53843,2499.7,2499.6,0.80005]
[1750434674377,31.50146573,2499.7,2499.6,0.80005]
[1750434675584,0.6264,2499.7,2499.6,0.80005]
[1750434675885,25.7354,2499.7,2499.6,0.80005]
[1750434676079,0.80047,2498.3,2497.8,10.35845804]
[1750434676283,0.80047,2498.3,2496.5,2.00259]
[1750434676284,8.17083573,2497.9,2496.5,2.00259]
[1750434676479,4.96303573,2498.0,2496.8,3.2078]
[1750434676480,4.96303573,2497.5,2496.8,3.2078]
[1750434676786,1.42536308,2497.4,2497.0,0.80086]
[1750434677087,1.42536308,2497.3,2497.0,0.08009611]
[1750434677285,1.42536308,2497.2,2497.0,3.27180779]
[1750434677489,4.96303573,2497.3,2497.0,3.27180779]
[1750434677677,1.47237641,2497.2,2497.0,3.19171168]
[1750434677883,6.43537288,2497.1,2497.0,3.19171168]
[1750434678082,1.47233715,2497.1,2497.0,3.99259168]
[1750434678278,4.96303573,2497.7,2497.0,10.60553573]
[1750434678479,26.68619873,2497.6,2497.2,3.2078]
[1750434678679,1.47219873,2497.5,2497.2,3.2078]
[1750434678886,7.56667,2497.7,2497.2,4.5075]
[1750434679080,1.47491763,2497.6,2497.3,1.2997]
[1750434679283,1.47491763,2497.5,2497.2,3.2078]
[1750434679483,6.766,2497.7,2497.2,3.2078]
[1750434679789,0.80074,2497.5,2497.2,3.2078]
[1750434680689,12.75203903,2497.3,2496.2,3.2078]
[1750434680888,0.80101,2496.6,2496.3,0.62175302]
[1750434681188,9.54423903,2496.8,2496.4,0.62175302]
[1750434681388,0.80101,2496.6,2496.5,0.62175302]
[1750434681589,10.82953903,2496.8,2496.5,0.62009152]
[1750434681780,3.2078,2496.6,2495.6,3.2078]
[1750434681984,3.2078,2495.9,2495.7,0.62012202]
[1750434682180,3.2078,2495.9,2495.3,5.2113]
[1750434682181,0.80112,2496.3,2495.8,1.42136202]
[1750434682382,9.54423903,2496.0,2495.9,0.62012202]
[1750434682582,0.8012,2496.0,2495.9,0.62012202]
[1750434682787,0.8012,2496.0,2495.9,0.62013969]
[1750434682989,3.51757869,2496.0,2495.9,0.62013969]
[1750434683188,3.51757869,2496.0,2495.3,0.80141]
[1750434683189,0.80131,2495.7,2495.3,0.80141]
[1750434683390,0.80131,2495.7,2495.4,0.60580721]
[1750434683595,0.80129,2495.8,2495.5,0.60580893]
[1750434683790,0.80129,2495.8,2495.4,0.80139]
[1750434683993,0.80127,2495.8,2495.4,0.80137]
[1750434684191,3.2078,2495.8,2495.5,0.62614621]
[1750434684397,0.80136,2495.5,2495.1,1.80048]
[1750434684697,0.80138,2495.5,2495.2,0.62619462]
[1750434684891,1.3771,2495.5,2495.3,0.62619462]
[1750434685095,1.3771,2495.5,2495.4,0.62619462]
[1750434685297,2.17846,2495.5,2495.4,0.62619462]
[1750434685497,2.17846,2495.5,2495.4,0.62621146]
[1750434685796,2.17846,2495.5,2495.4,0.62621139]
[1750434685996,1.3771,2495.5,2495.4,0.62621139]
[1750434686198,2.17846,2495.5,2495.4,0.62621139]
[1750434686789,1.3771,2495.5,2495.1,4.2068]
[1750434686987,1.3771,2495.5,2495.3,0.80142]
[1750434687192,1.3771,2495.5,2495.1,4.2068]
[1750434687394,14.12913903,2495.5,2495.2,0.80145]
[1750434687791,14.12913903,2495.5,2495.3,0.80142]
[1750434687995,14.12913903,2495.5,2495.2,0.06933781]
[1750434688193,14.12913903,2495.5,2495.2,0.87078781]
[1750434688395,3.2078,2495.5,2495.3,0.8014]
[1750434688595,3.2078,2495.5,2495.2,0.06933781]
[1750434688906,3.2078,2495.5,2495.4,0.8014]
[1750434691100,3.2078,2495.8,2495.7,0.8013]
[1750434691301,44.91303903,2496.2,2496.1,0.80117]
[1750434691502,14.17451238,2496.2,2496.1,0.80117]
[1750434691805,3.2078,2496.2,2496.1,0.80117]
[1750434692408,2.39357201,2497.0,2496.1,11.54716903]
[1750434692601,1.343,2497.0,2496.9,0.80091]
[1750434692801,3.2078,2497.0,2496.9,0.80091]
[1750434693104,3.2078,2497.0,2496.6,0.06933781]
[1750434693310,11.68814903,2496.9,2496.8,0.80093]
[1750434693708,10.88723903,2496.9,2496.8,0.80093]
[1750434694411,10.88723903,2496.9,2496.6,0.87032781]
[1750434694706,0.80098,2496.7,2496.6,0.06933781]
[1750434694912,0.80095,2496.8,2496.6,0.801]
[1750434695206,1.3505,2496.8,2496.7,0.80098]
[1750434695405,1.3505,2496.8,2496.6,0.801]
[1750434695606,1.3505,2496.8,2496.5,0.80102]
[1750434695807,0.801,2496.7,2496.6,0.80101]
[1750434696302,0.80101,2496.6,2496.5,0.80104]
[1750434696811,1.3505,2496.8,2496.4,6.775]
[1750434696998,0.801,2496.7,2496.6,0.80101]
[1750434697199,1.3505,2496.8,2496.4,6.775]
[1750434697406,2.15146,2496.8,2496.7,0.80098]
[1750434697607,2.15146,2496.8,2496.4,6.775]
[1750434697909,0.80099,2496.7,2496.4,6.775]
[1750434698207,0.801,2496.7,2496.5,0.80103]
[1750434698413,2.15146,2496.8,2496.6,0.80099]
[1750434698598,1.3505,2496.8,2496.6,0.80099]
[1750434698909,2.15146,2496.8,2496.6,0.80099]
[1750434699112,1.3505,2496.8,2496.6,0.80099]
[1750434699708,2.22751194,2496.7,2496.6,0.80101]
[1750434699905,5.43531194,2496.7,2496.6,0.80101]
[1750434700411,5.43531194,2496.7,2496.5,0.80102]
[1750434700412,0.80102,2496.6,2496.5,0.80102]
[1750434700712,2.22754194,2496.6,2496.5,0.80102]
[1750434702003,2.22754194,2496.6,2496.5,0.80104]
[1750434702210,1.42652194,2496.6,2496.2,1.3585]
[1750434702411,1.42652194,2496.6,2496.1,3.2078]
[1750434702412,9.54423903,2496.3,2496.1,3.2078]
[1750434702710,0.80125,2496.0,2495.9,0.80122]
[1750434703016,2.22777194,2496.0,2495.9,0.80122]
[1750434703811,2.22774194,2496.0,2495.9,0.80123]
[1750434704321,0.80126,2495.9,2495.8,0.80125]
[1750434704510,1.42652194,2495.9,2495.8,0.80125]
[1750434705112,1.42652194,2495.9,2495.8,0.80127]
[1750434705716,0.80127,2495.8,2495.7,4.00907]
[1750434705921,3.80846803,2495.8,2495.7,4.00907]
[1750434706116,4.60973803,2495.8,2495.7,4.07840781]
[1750434706931,4.60973803,2495.8,2495.7,0.06933781]
[1750434707225,0.80132,2495.7,2495.6,0.80132]
[1750434707429,0.80133,2495.6,2495.5,0.80134]
[1750434707630,3.80968672,2495.6,2495.5,0.80134]
[1750434708431,1.42652194,2495.6,2495.5,0.80134]
[1750434709331,2.22785194,2495.6,2495.5,0.80134]
[1750434709926,1.42652194,2495.6,2495.5,0.80134]
[1750434710125,2.22785194,2495.6,2495.5,0.80134]
[1750434710431,0.80137,2495.5,2495.4,0.80137]
[1750434710629,0.8014,2495.4,2495.3,0.80141]
[1750434710826,2.22793194,2495.4,2495.1,0.999]
[1750434711023,1.42652194,2495.3,2495.2,0.80146]
[1750434711229,1.42652194,2495.3,2495.2,2.09786]
[1750434711424,1.42652194,2495.3,2495.2,0.80146]
[1750434712032,3.81187258,2495.3,2495.2,2.13076]
[1750434712838,3.81187258,2495.3,2495.2,0.80146]
[1750434713837,4.61332258,2495.3,2495.2,0.80146]
[1750434714030,3.81187258,2495.3,2495.2,0.80146]
[1750434715329,3.81187258,2495.3,2495.2,2.16256]
[1750434715530,3.81187258,2495.3,2495.2,0.80146]
[1750434717637,1.42652194,2495.3,2495.2,0.80146]
[1750434718239,3.81187258,2495.3,2495.2,0.80146]
[1750434718431,1.42652194,2495.3,2495.2,0.80146]
[1750434720737,2.22795194,2495.3,2495.2,0.80146]
[1750434721437,2.22795194,2495.3,2494.8,3.2078]
[1750434721438,0.80156,2494.9,2494.8,3.2078]
[1750434721628,0.80168,2494.6,2494.5,0.80168]
[1750434721827,1.42652194,2494.6,2494.5,0.80168]
[1750434723739,1.42652194,2494.6,2494.5,10.86048]
[1750434723941,7.03752935,2495.2,2494.5,10.86048]
[1750434723942,2.38266364,2495.2,2495.1,0.80149]
[1750434724140,3.18406364,2495.4,2495.3,0.80143]
[1750434724337,0.80155,2495.0,2494.9,0.80154]
[1750434725034,14.75569903,2495.2,2494.5,2.00421]
[1750434725234,0.80157,2494.9,2494.8,0.80156]
[1750434725738,0.80154,2495.0,2494.9,0.80154]
[1750434726138,0.80156,2494.9,2494.8,0.80156]
[1750434726335,0.80155,2495.0,2494.9,0.80154]
[1750434726538,0.80173,2494.4,2494.3,0.80172]
[1750434726844,27.67596046,2494.6,2494.4,0.80172]
[1750434727043,2.38396046,2494.6,2494.3,0.80173]
[1750434727233,2.38396046,2494.6,2494.1,3.2078]
[1750434727234,0.80171,2494.5,2494.4,0.80172]
[1750434727434,1.3159,2494.6,2494.5,0.80168]
[1750434727841,3.18559046,2494.7,2494.6,0.80165]
[1750434728142,2.38396046,2494.7,2494.6,0.80165]
[1750434728338,6.39336046,2494.8,2494.7,0.80162]
[1750434728849,5.59176046,2494.8,2494.7,0.80162]
[1750434729043,3.2078,2494.8,2494.7,0.80162]
[1750434729236,2.38396046,2494.9,2494.8,0.80159]
[1750434729436,2.38396046,2495.0,2494.9,0.80156]
[1750434729645,13.09623424,2495.1,2495.0,0.80152]
[1750434729646,15.4801947,2495.1,2495.0,0.80152]
[1750434729837,15.4801947,2495.1,2494.7,0.80159]
[1750434729838,0.80161,2494.8,2494.7,0.80159]
[1750434730138,1.3189,2495.0,2494.9,0.80155]
[1750434730336,1.3189,2495.0,2494.6,2.00411]
[1750434730337,14.6786947,2495.1,2494.6,2.00411]
[1750434730537,13.09624424,2495.1,2495.0,0.80152]
[1750434730841,0.80153,2495.0,2494.9,0.80154]
[1750434731038,0.80153,2495.0,2494.2,2.69869]
[1750434731039,9.54423903,2495.0,2494.2,2.69869]
[1750434731234,12.75203903,2494.7,2494.4,0.80169]
[1750434731437,1.3189,2494.6,2494.2,0.6943]
[1750434731637,4.00943,2494.7,2494.6,0.80165]
[1750434732242,0.80166,2494.6,2494.5,0.80166]
[1750434732442,0.80169,2494.5,2494.4,0.80169]
[1750434732848,0.80167,2494.6,2494.5,0.80166]
[1750434733647,0.80171,2494.5,2494.4,0.80169]
[1750434734041,0.80167,2494.6,2494.5,0.80165]
[1750434734542,0.80169,2494.6,2494.5,0.80166]
[1750434734742,3.2078,2494.7,2494.6,0.80165]
[1750434735046,0.80158,2494.9,2494.8,0.80155]
[1750434735543,4.00935,2495.0,2494.9,0.80155]
[1750434735943,5.3339024,2495.0,2494.9,0.80155]
[1750434736240,0.80159,2494.9,2494.8,0.80156]
[1750434736447,2.1261424,2494.9,2494.8,0.80156]
[1750434736746,2.00397,2494.8,2494.0,2.00459]
[1750434736934,0.80171,2494.5,2494.4,0.80168]
[1750434737137,0.80165,2494.6,2494.5,0.80168]
[1750434737440,0.80168,2494.5,2494.4,0.80169]
[1750434737938,0.80176,2494.3,2494.2,0.80175]
[1750434738140,9.54423903,2494.5,2493.9,12.06544]
[1750434738346,0.80184,2494.1,2494.0,0.80182]
[1750434738739,0.80184,2494.0,2493.9,0.80186]
[1750434739341,0.80188,2493.9,2493.8,0.6567]
[1750434739543,3.2078,2493.9,2493.5,6.778]
[1750434739746,0.80189,2493.9,2493.8,0.80191]
[1750434739946,3.2078,2494.2,2493.7,2.00486]
[1750434740146,0.80181,2494.2,2494.1,0.80181]
[1750434740355,0.80187,2494.0,2493.9,0.80186]
[1750434740948,0.80184,2494.1,2494.0,0.80183]
[1750434741654,0.80186,2494.0,2493.9,0.80187]
[1750434742050,4.4616,2494.2,2493.6,13.31345]
[1750434742350,3.2078,2494.2,2494.1,0.80182]
[1750434743256,0.8017,2494.5,2494.4,0.80172]
[1750434743549,1.33180911,2494.5,2494.0,0.6541]
[1750434743740,1.33296282,2494.4,2494.3,0.80175]
[1750434743946,3.2078,2494.6,2494.4,0.8017]
[1750434744149,1.33295907,2494.5,2494.4,0.8017]
[1750434744347,2.13464907,2494.5,2494.4,0.8017]
[1750434744760,1.33295907,2494.5,2494.4,0.8017]
[1750434746851,3.2078,2494.9,2494.8,0.80159]
[1750434747050,4.54131147,2494.9,2494.8,0.80159]
[1750434747455,3.2078,2495.2,2495.1,0.8015]
[1750434747650,4.54196353,2495.2,2495.0,0.80151]
[1750434747855,13.01381256,2495.1,2495.0,0.80153]
[1750434748051,12.21230256,2495.1,2495.0,0.80153]
[1750434749060,2.66806353,2495.1,2495.0,0.80153]
[1750434751758,1.33416353,2495.1,2495.0,0.80153]
[1750434755555,1.33416353,2495.1,2495.0,0.87086781]
[1750434756855,3.2078,2495.2,2495.1,0.8015]
[1750434757060,4.54295046,2495.2,2495.1,2.1465]
[1750434757363,4.54295046,2495.2,2495.1,2.8384]
[1750434758056,1.33515046,2495.2,2495.1,2.8384]
[1750434758252,3.2078,2495.6,2495.5,0.80137]
[1750434758453,4.54235886,2495.6,2495.5,0.80137]
[1750434758862,1.33455886,2495.6,2495.5,0.80137]
[1750434759057,0.1142,2495.8,2495.7,0.8013]
[1750434759259,2.2500963,2495.8,2495.7,0.8013]
[1750434759460,1.44802751,2495.8,2495.2,3.2078]
[1750434759665,0.80132,2495.7,2495.3,7.4675]
[1750434759862,0.80134,2495.6,2495.5,0.80135]
[1750434760066,0.80137,2495.5,2495.3,0.80142]
[1750434760369,1.3351,2495.5,2495.4,0.8014]
[1750434760559,2.66849682,2495.5,2495.4,0.8014]
[1750434760759,1.33339682,2495.5,2495.4,0.8014]
[1750434760954,3.2078,2495.6,2495.2,2.00365]
[1750434761162,3.2078,2495.6,2495.5,0.80137]
[1750434761367,4.54112246,2495.6,2495.5,0.80137]
[1750434761664,1.33332246,2495.6,2495.5,0.80137]
[1750434761863,2.13466246,2495.6,2495.5,0.80137]
[1750434762064,2.13466246,2495.6,2495.4,0.80138]
[1750434762367,0.80136,2495.6,2495.5,0.80137]
[1750434762968,10.18053903,2495.7,2495.3,0.669]
[1750434763166,3.2078,2495.5,2495.3,0.8014]
[1750434763362,2.1475,2495.4,2495.3,0.8014]
[1750434763568,0.8014,2495.4,2495.3,0.8014]
[1750434764468,0.8015,2495.2,2495.1,0.80147]
[1750434764664,1.337,2495.3,2494.8,3.2078]
[1750434764967,9.54423903,2495.1,2495.0,0.80153]
[1750434765167,10.34573903,2495.1,2495.0,0.80153]
[1750434766465,9.54423903,2495.1,2495.0,0.80153]
[1750434766767,25.188,2495.3,2495.2,0.80147]
[1750434766964,0.8015,2495.2,2495.1,0.80147]
[1750434767163,2.13242575,2495.2,2495.1,0.80147]
[1750434767571,0.8015,2495.2,2495.1,0.80147]
[1750434767972,2.13313678,2495.2,2495.1,0.80147]
[1750434768369,0.8015,2495.1,2495.0,0.87083781]
[1750434768572,0.80149,2495.2,2495.1,0.80145]
[1750434768874,2.13319696,2495.3,2495.2,0.80147]